{"text_format":"1","workbook":"xlsx","n_sheets":3,"sheets":["Tabulky","Pavouk","Pořadí"],"not_rendered":{"charts":0,"images":1,"macros":1,"external_links":0,"defined_names":4,"comments":0,"pivot_tables":0},"unopened":[],"bounds":{"document_bytes":16777216,"sheet_cells":100000,"rows_first":2000,"rows_last":500,"rows_between":2000,"halvings":0,"cell_chars":16384,"cell_head_chars":4096},"cells_cut":0,"cells_raw":0,"read":"whole","date_system":"1900"}

{"sheet":"Tabulky","index":0,"n_rows":70,"n_cols":9,"rows_kept":70,"cut":false,"hidden":false,"merged":[]}
[]
["Skupina A - kurt ",null,"Kovačková Jana","Jančarová Mariana","Přikrylová Kateřina","Padrnosová Nela",0,"Pořadí","Počet vítězství"]
["A1","Kovačková Jana",null,"4-2","4-1","4-1",0,"1.","3"]
["A2","Jančarová Mariana","2-4",null,"4-2","3-4",0,"3.","1"]
["A3","Přikrylová Kateřina","1-4","2-4",null,"1-4",0,"4.","0"]
["A4","Padrnosová Nela","1-4","4-3","4-1",null,0,"2.","2"]
["A5",0]
[]
["Skupina B -  kurt ",null,"Zajíčková Kateřina","Blažková Barbora","Dušková Darina","Filipová Kateřina","Veberová Nikola","Pořadí","Počet vítězství"]
["B1","Zajíčková Kateřina",null,"4-0","4-0","4-1","4-0","1.","4"]
["B2","Blažková Barbora","0-4",null,"4-1","2-4","4-3","3.","2"]
["B3","Dušková Darina","0-4","1-4",null,"0-4","4-3","4.","1"]
["B4","Filipová Kateřina","1-4","4-2","4-0",null,"4-1","2.","3"]
["B5","Veberová Nikola","0-4","3-4","3-4","1-4",null,"5.","0"]
[]
["Skupina C - kurt ",null,"Levinsky Gloria","Vondráčková Michaela","Phillipová Denisa","Mousa Sarah","Michna Lisa","Pořadí","Počet vítězství"]
["C1","Levinsky Gloria",null,"2-4","4-1","4-1","4-1","2.","3"]
["C2","Vondráčková Michaela","4-2",null,"4-0","4-0","4-2","1.","4"]
["C3","Phillipová Denisa","1-4","0-4",null,"4-0","3-4","3.","1"]
["C4","Mousa Sarah","1-4","0-4","0-4",null,"4-2","5.","1"]
["C5","Michna Lisa","1-4","2-4","4-3","2-4",null,"4.","1"]
[]
["Skupina D - kurt ",null,"Vernerová Sabina","Holubová Eliška","Jelínková Adéla","Radová Sofie","Dvořáková Denisa","Pořadí","Počet vítězství"]
["D1","Vernerová Sabina",null,"4-0","4-3","4-1","4-1","1.","4"]
["D2","Holubová Eliška","0-4",null,"0-4","0-4","0-4","5.","0"]
["D3","Jelínková Adéla","3-4","4-0",null,"3-4","4-3","3.","2"]
["D4","Radová Sofie","1-4","4-0","4-3",null,"4-1","2.","3"]
["D5","Dvořáková Denisa","1-4","4-0","3-4","1-4",null,"4.","1"]
[]
["Skupina E - kurt",null,0,0,0,0,0,"Pořadí","Počet vítězství"]
["E1",0,null,0,0,0,0]
["E2",0,null,null,0,0,0]
["E3",0,null,null,null,0,0]
["E4",0,null,null,null,null,0]
["E5",0]
[]
["Skupina F - kurt",null,0,0,0,0,0,"Pořadí","Počet vítězství"]
["F1",0,null,0,0,0,0]
["F2",0,null,null,0,0,0]
["F3",0,null,null,null,0,0]
["F4",0,null,null,null,null,0]
["F5",0]
[]
["Skupina G - kurt ",null,0,0,0,0,0,"Pořadí","Počet vítězství"]
["G1",0,null,0,0,0,0]
["G2",0,null,null,0,0,0]
["G3",0,null,null,null,0,0]
["G4",0,null,null,null,null,0]
["G5",0]
[]
["Skupina H - kurt ",null,0,0,0,0,0,"Pořadí","Počet vítězství"]
["H1",0,null,0,0,0,0]
["H2",0,null,null,0,0,0]
["H3",0,null,null,null,0,0]
["H4",0,null,null,null,null,0]
["H5",0]
[]
["Skupina I - kurt ",null,0,0,0,0,0,"Pořadí","Počet vítězství"]
["I1",0,null,0,0,0,0]
["I2",0,null,null,0,0,0]
["I3",0,null,null,null,0,0]
["I4",0,null,null,null,null,0]
["I5",0]
[]
["Skupina J - kurt ",null,0,0,0,0,0,"Pořadí","Počet vítězství"]
["J1",0,null,0,0,0,0]
["J2",0,null,null,0,0,0]
["J3",0,null,null,null,0,0]
["J4",0,null,null,null,null,0]
["J5",0]

{"sheet":"Pavouk","index":1,"n_rows":32,"n_cols":3,"rows_kept":32,"cut":false,"hidden":false,"merged":[]}
[]
[{"$f":"A2:C24","v":0}]
[]
["Kovačková Jana"]
[]
[null,"Kovačková Jana"]
[null,"4-1"]
["Filipová Kateřina"]
[]
[null,null,"Kovačková Jana"]
[null,null,"4-1"]
["Levinsky Gloria"]
[]
[null,"Levinsky Gloria"]
[null,"4-3"]
["Vernerová Sabina"]
[]
[null,null,"Kovačková Jana"]
[null,null,"4-1"]
["Vondráčková Michaela"]
[]
[null,"Vondráčková Michaela"]
[null,"4-3"]
["Padrnosová Nela"]
[]
[null,null,"Zajíčková Kateřina"]
[null,null,"4-0"]
["Radová Sofie"]
[]
[null,"Zajíčková Kateřina"]
[null,"4-0"]
["Zajíčková Kateřina"]

{"sheet":"Pořadí","index":2,"n_rows":71,"n_cols":14,"rows_kept":71,"cut":false,"hidden":false,"merged":[[0,0,0,8]]}
["POŘADÍ - SPARTA HEAD BABYTENIS TOUR LÉTO 2019 - DÍVKY"]
[]
[]
[]
[]
[]
[]
[]
[]
[]
[]
[]
[]
[null,null,null,null,null,null,null,null,null,null,null,null,null,"P"]
[]
[]
[]
[]
[]
[]
[]
[]
[]
["Pořadí","Příjmení","1. turnaj","2. turnaj","3. turnaj","4. turnaj","5. turnaj","Masters","Celkem"]
["1.","Zajíčková Kateřina",300,250,null,null,null,null,{"$f":"SUM(C25:H25)","v":550}]
["2.-5.","Vernerová Sabina",200,100,null,null,null,null,{"$f":"SUM(C26:H26)","v":300}]
[null,"Levinsky Gloria",100,200,null,null,null,null,{"$f":"SUM(C27:H27)","v":300}]
[null,"Kovačková Jana",0,300,null,null,null,null,{"$f":"SUM(C28:H28)","v":300}]
[null,"Padrnosová Nela",200,100,null,null,null,null,{"$f":"SUM(C29:H29)","v":300}]
[6,"Havlíková Viktorie",250,0,null,null,null,null,{"$f":"SUM(C30:H30)","v":250}]
["7.","Vondráčková Michaela",0,200,null,null,null,null,{"$f":"SUM(C31:H31)","v":200}]
["8.","Radová Sofie",20,100,null,null,null,null,{"$f":"SUM(C32:H32)","v":120}]
["9.-12.","Hrdličková  Terezie",100,0,null,null,null,null,{"$f":"SUM(C33:H33)","v":100}]
[null,"Farajpourová Aináz",100,0,null,null,null,null,{"$f":"SUM(C34:H34)","v":100}]
[null,"Chlumská Laura",100,0,null,null,null,null,{"$f":"SUM(C35:H35)","v":100}]
[null,"Filipová Kateřina",0,100,null,null,null,null,{"$f":"SUM(C36:G36)","v":100}]
["13.","Jančarová Mariana",50,20,null,null,null,null,{"$f":"SUM(C37:H37)","v":70}]
["14.","Dvořáková Denisa",50,10,null,null,null,null,{"$f":"SUM(C38:H38)","v":60}]
["15.","Jelínková Adéla",10,20,null,null,null,null,{"$f":"SUM(C39:H39)","v":30}]
["16.-17","Holubová Eliška",20,5,null,null,null,null,{"$f":"SUM(C40:H40)","v":25}]
[null,"Blažková Barbora",5,20,null,null,null,null,{"$f":"SUM(C41:H41)","v":25}]
["18.-22.","Zimová Lela",20,0,null,null,null,null,{"$f":"SUM(C42:H42)","v":20}]
[null,"Musilová Amélie",20,0,null,null,null,null,{"$f":"SUM(C43:H43)","v":20}]
[null,"Cenklová Adriana",20,0,null,null,null,null,{"$f":"SUM(C44:H44)","v":20}]
[null,"Přikrylová Kateřina",10,10,null,null,null,null,{"$f":"SUM(C45:H45)","v":20}]
[null,"Phillipová Denisa",0,20,null,null,null,null,{"$f":"SUM(C46:H46)","v":20}]
["23.-28.","Mastná Daria",10,0,null,null,null,null,{"$f":"SUM(C47:H47)","v":10}]
[null,"Sobiesiak Maja",10,0,null,null,null,null,{"$f":"SUM(C48:H48)","v":10}]
[null,"Hladíková Ema",10,0,null,null,null,null,{"$f":"SUM(C49:H49)","v":10}]
[null,"Veberová Nikola",5,5,null,null,null,null,{"$f":"SUM(C50:H50)","v":10}]
[null,"Dušková Darina",0,10,null,null,null,null,{"$f":"SUM(C51:H51)","v":10}]
[null,"Michna Lisa",0,10,null,null,null,null,{"$f":"SUM(C52:H52)","v":10}]
["29.","Mousa Sarah",0,5,null,null,null,null,{"$f":"SUM(C53:H53)","v":5}]
[null,null,null,null,null,null,null,null,0]
[null,null,null,null,null,null,null,null,{"$f":"SUM(C55:H55)","v":0}]
[null,null,null,null,null,null,null,null,0]
[null,null,null,null,null,null,null,null,{"$f":"SUM(C57:G57)","v":0}]
[null,null,null,null,null,null,null,null,{"$f":"SUM(C58:H58)","v":0}]
[null,null,null,null,null,null,null,null,{"$f":"SUM(C59:G59)","v":0}]
[null,null,null,null,null,null,null,null,{"$f":"SUM(C60:H60)","v":0}]
[null,null,null,null,null,null,null,null,{"$f":"SUM(C61:G61)","v":0}]
[null,null,null,null,null,null,null,null,0]
[null,null,null,null,null,null,null,null,0]
[null,null,null,null,null,null,null,null,{"$f":"SUM(C64:H64)","v":0}]
[null,null,null,null,null,null,null,null,{"$f":"SUM(C65:G65)","v":0}]
[null,null,null,null,null,null,null,null,{"$f":"SUM(C66:G66)","v":0}]
[null,null,null,null,null,null,null,null,{"$f":"SUM(C67:H67)","v":0}]
[null,null,null,null,null,null,null,null,0]
[null,null,null,null,null,null,null,null,0]
[null,null,null,null,null,null,null,null,0]
[null,null,null,null,null,null,null,null,0]